bitfinex-derivatives/quotes_SOLF0:USTF0_20260218
["timestamp","ask_amount","ask_price","bid_price","bid_amount"]
[1771378144195,3.60674991,84.134,84.091,0.96590534]
[1771378145296,3.60674991,84.134,84.104,0.08351762]
[1771378159906,3.66208166,84.126,84.093,74.74]
[1771378161005,0.0817108,84.127,84.093,74.74]
[1771378161006,3.66208166,84.124,84.093,74.74]
[1771378166504,3.66208166,84.124,84.089,1.18764744]
[1771378168815,3.66208166,84.124,84.09,2.03513158]
[1771378170115,0.0817108,84.127,84.091,1.18660505]
[1771378170307,0.0817108,84.127,84.048,35.67]
[1771378170308,0.0817108,84.127,84.101,1.18660505]
[1771378170916,10.7027,84.137,84.101,1.18660505]
[1771378171217,0.08581297,84.122,84.101,1.18660505]
[1771378174107,3.66208166,84.146,84.104,1.18084484]
[1771378177419,3.66208166,84.146,84.11,2.03513158]
[1771378179013,3.66208166,84.176,84.131,1.18285374]
[1771378180017,3.66208166,84.176,84.145,0.0800952]
[1771378186011,3.66208166,84.176,84.123,10.7044]
[1771378186416,3.65829924,84.168,84.123,11.85995877]
[1771378189026,3.65829924,84.168,84.124,1.15475266]
[1771378189325,3.65829924,84.168,84.128,11.85855266]
[1771378189626,3.65829924,84.168,84.13,2.03513158]
[1771378189821,3.65829924,84.168,84.121,10.7047]
[1771378190729,0.07675743,84.153,84.121,10.7047]
[1771378191122,0.07675743,84.153,84.121,11.81804832]
[1771378192522,0.07675743,84.153,84.121,11.81794832]
[1771378193518,0.07675743,84.153,84.122,1.1452365]
[1771378194121,3.6804314,84.153,84.112,86.65510735]
[1771378194518,3.6804314,84.153,84.113,1.18940735]
[1771378194725,3.6804314,84.153,84.112,74.76]
[1771378194726,0.07675743,84.153,84.121,1.18940735]
[1771378200032,3.60367397,84.15,84.106,1.18368451]
[1771378200530,3.60367397,84.141,84.106,1.18368451]
[1771378200739,3.60367397,84.139,84.092,1.18368451]
[1771378200937,3.60367397,84.135,84.092,1.18368451]
[1771378202141,3.60367397,84.129,84.082,10.7097]
[1771378202332,3.60367397,84.119,84.071,83.88]
[1771378202535,3.60367397,84.119,84.072,1.26247629]
[1771378203529,0.08690426,84.104,84.072,1.26247629]
[1771378203730,0.08690426,84.104,84.072,11.97337629]
[1771378204526,3.60367397,84.103,84.063,10.712]
[1771378205537,0.07976013,84.091,84.063,10.712]
[1771378206329,0.07976013,84.091,84.061,1.29211786]
[1771378207635,3.6834341,84.091,84.051,1.26877486]
[1771378208237,3.60367397,84.091,84.051,1.26877486]
[1771378208434,5.63880555,84.08,84.039,1.2590986]
[1771378208634,3.68356144,84.079,84.04,1.2590986]
[1771378208937,3.60367397,84.069,84.03,2.03513158]
[1771378209234,21.4063,84.134,84.04,3.29423018]
[1771378209235,3.60367397,84.082,84.04,3.29423018]
[1771378209635,3.60367397,84.099,84.05,3.29423018]
[1771378210028,3.60367397,84.111,84.061,1.09667505]
[1771378210237,3.60367397,84.129,84.081,1.09667505]
[1771378211033,3.60367397,84.129,84.097,0.08891827]
[1771378212238,3.60367397,84.141,84.1,3.22320757]
[1771378213243,3.60367397,84.141,84.112,0.08901548]
[1771378213835,8.98334359,84.185,84.08,1.18807599]
[1771378213836,3.60367397,84.139,84.08,1.18807599]
[1771378214036,3.60367397,84.129,84.08,3.3975385]
[1771378214532,3.69038885,84.119,84.07,2.03513158]
[1771378214733,3.69038885,84.119,84.068,1.3592431]
[1771378215346,0.08312609,84.102,84.068,1.3592431]
[1771378215844,0.08312609,84.102,84.07,3.39468328]
[1771378216036,3.69038885,84.128,84.08,2.03513158]
[1771378217947,3.69038885,84.128,84.096,0.08105362]
[1771378219744,3.69038885,84.128,84.07,1.3595517]
[1771378219745,3.69038885,84.119,84.07,3.39555349]
[1771378221154,0.0789243,84.103,84.07,3.39555349]
[1771378222753,0.0789243,84.103,84.071,1.37468698]
[1771378223559,0.0789243,84.103,84.081,1.37468698]
[1771378224463,3.69038885,84.123,84.084,0.07953771]
[1771378228864,3.69038885,84.123,84.085,1.31935663]
[1771378229763,3.69038885,84.123,84.085,12.02855663]
[1771378230656,3.69038885,84.123,84.085,1.31935663]
[1771378230857,3.69038885,84.119,84.084,0.07953771]
[1771378231259,3.69038885,84.117,84.084,0.07953771]
[1771378231459,3.69038885,84.109,84.067,10.7115]
[1771378232064,3.69038885,84.099,84.05,2.03600179]
[1771378232368,3.69038885,84.095,84.048,1.32608656]
[1771378232671,3.69038885,84.079,84.031,1.32608656]
[1771378233569,0.08497956,84.063,84.031,1.32608656]
[1771378234272,0.08497956,84.063,84.032,12.0353869]
[1771378234567,0.08497956,84.063,84.033,1.3193869]
[1771378236267,9.11663118,84.123,84.022,83.74]
[1771378236268,3.69038885,84.093,84.05,2.03600179]
[1771378236468,3.69038885,84.091,84.05,2.03600179]
[1771378236674,11.2745953,84.09,84.05,2.03600179]
[1771378236969,11.2745953,84.089,84.05,2.03600179]
[1771378237174,11.2745953,84.088,84.05,2.03600179]
[1771378237470,11.2745953,84.087,84.05,2.03600179]
[1771378237672,3.69038885,84.103,84.061,1.27529771]
[1771378237869,2.03600179,84.1,84.061,0.08034175]
[1771378238069,3.69038885,84.089,84.061,0.08034175]
[1771378238277,3.69038885,84.089,84.041,10.7149]
[1771378238472,0.0856704,84.09,84.051,1.31426898]
[1771378238872,3.69038885,84.099,84.051,1.31426898]
[1771378239273,3.69038885,84.097,84.051,1.31426898]
[1771378239773,0.07897074,84.083,84.051,1.31426898]
[1771378240072,3.69038885,84.097,84.04,1.25743036]
[1771378240278,3.69038885,84.089,84.04,3.29343215]
[1771378240574,3.69038885,84.101,84.06,2.03600179]
[1771378240775,3.69038885,84.114,84.08,2.03600179]
[1771378241073,3.69038885,84.129,84.08,2.03600179]
[1771378241271,10.7053,84.117,84.071,1.25743036]
[1771378241576,3.69038885,84.117,84.089,0.08129957]
[1771378243273,3.69038885,84.117,84.07,2.03600179]
[1771378243477,3.69038885,84.115,84.07,2.03600179]
[1771378243672,0.08420992,84.111,84.07,2.03600179]
[1771378244773,0.08420992,84.111,84.072,10.7109]
[1771378246871,3.59331009,84.11,84.07,2.03600179]
[1771378247074,3.59331009,84.11,84.064,10.7119]
[1771378247075,3.59331009,84.108,84.064,10.7119]
[1771378247382,3.59331009,84.108,84.07,2.03600179]
[1771378247569,3.59331009,84.108,84.071,10.711]
[1771378247771,0.08420992,84.111,84.072,1.4226015]
[1771378248084,0.08420992,84.111,84.08,2.03600179]
[1771378249581,0.08420992,84.111,84.086,10.7091]
[1771378249783,3.59331009,84.12,84.086,10.7091]
[1771378250884,3.59331009,84.139,84.09,2.03600179]
[1771378251077,3.59331009,84.137,84.095,0.08504371]
[1771378251280,3.59331009,84.135,84.095,0.08504371]
[1771378251482,3.59331009,84.133,84.095,0.08504371]
[1771378251680,3.59331009,84.133,84.09,2.03600179]
[1771378252075,74.78,84.163,84.062,74.78]
[1771378252076,3.59331009,84.129,84.07,2.03600179]
[1771378252282,3.59331009,84.113,84.07,2.03600179]
[1771378252478,3.59331009,84.113,84.071,1.45623085]
[1771378253283,3.59331009,84.113,84.059,1.45623085]
[1771378253487,0.07829598,84.1,84.06,2.03600179]
[1771378254580,0.07829598,84.1,84.07,2.03600179]
[1771378256783,0.07829598,84.1,84.07,3.51485329]
[1771378256988,0.07829598,84.1,84.071,1.4788515]
[1771378258690,0.07829598,84.1,84.072,10.7109]
[1771378259088,0.07829598,84.1,84.072,12.19544117]
[1771378260282,0.07829598,84.1,84.075,10.7105]
[1771378261081,0.07829598,84.1,84.07,2.03600179]
[1771378262988,0.07829598,84.1,84.08,3.51464012]
[1771378263188,2.03600179,84.13,84.081,1.47863833]
[1771378263189,3.67735255,84.129,84.081,1.47863833]
[1771378263385,3.67735255,84.127,84.081,1.47863833]
[1771378263590,14.72580326,84.126,84.081,1.47863833]
[1771378263789,14.72580326,84.125,84.081,1.47863833]
[1771378263985,11.04845071,84.124,84.081,1.47863833]
[1771378264191,11.04845071,84.123,84.081,1.47863833]
[1771378264388,3.67735255,84.125,84.08,2.03600179]
[1771378264389,11.04845071,84.122,84.082,12.16699083]
[1771378264689,9.12560317,84.151,84.049,74.78]
[1771378264690,11.04845071,84.121,84.095,0.08132604]
[1771378264892,3.67735255,84.136,84.095,0.08132604]
[1771378265096,3.67735255,84.134,84.095,0.08132604]
[1771378265291,3.67735255,84.132,84.09,2.03600179]
[1771378265491,3.67735255,84.129,84.08,3.49339262]
[1771378265691,0.0808838,84.123,84.08,3.49339262]
[1771378265897,3.67735255,84.121,84.08,3.49339262]
[1771378266087,3.67735255,84.119,84.08,3.49339262]
[1771378266294,3.67735255,84.117,84.08,3.49339262]
[1771378266491,3.67735255,84.115,84.07,2.03600179]
[1771378266689,3.67735255,84.113,84.072,10.7109]
[1771378266995,3.67735255,84.129,84.08,2.03600179]
[1771378267299,0.07500706,84.101,84.081,1.51794776]
[1771378267494,3.67735255,84.127,84.085,1.51794776]
[1771378267700,10.95514878,84.126,84.085,1.51794776]
[1771378267900,10.95514878,84.125,84.085,1.51794776]
[1771378268096,10.95514878,84.124,84.085,1.51794776]
[1771378268295,10.95514878,84.123,84.085,1.51794776]
[1771378268501,3.67735255,84.127,84.085,1.51794776]
[1771378268698,10.95474898,84.126,84.085,1.51794776]
[1771378268899,10.95474898,84.125,84.085,1.51794776]
[1771378269089,10.95474898,84.124,84.085,1.51794776]
[1771378269289,10.95547121,84.123,84.085,1.51794776]
[1771378269504,3.67735255,84.139,84.091,1.52195788]
[1771378269800,10.7028,84.136,84.091,1.52195788]
[1771378270000,10.95634191,84.135,84.091,1.52195788]
[1771378270197,10.95634191,84.134,84.094,1.48084759]
[1771378270404,10.7035,84.131,84.105,0.08980891]
[1771378270600,14.63317005,84.13,84.105,0.08980891]
[1771378270804,3.67735255,84.128,84.105,0.08980891]
[1771378271198,3.67735255,84.128,84.081,1.48084759]
[1771378271399,3.76183446,84.125,84.081,1.48084759]
[1771378271800,3.76183446,84.125,84.085,10.7093]
[1771378272491,3.76183446,84.125,84.086,1.62131248]
[1771378274195,3.76183446,84.125,84.064,74.78]
[1771378274196,0.08448191,84.125,84.096,1.68160486]
[1771378274699,3.84239161,84.134,84.087,10.709]
[1771378274899,10.703,84.135,84.087,10.709]
[1771378274900,3.84239161,84.132,84.087,10.709]
[1771378275099,0.08893318,84.119,84.087,10.709]
[1771378275503,0.08893318,84.119,84.088,1.6818451]
[1771378275694,0.08893318,84.119,84.09,12.3904451]
[1771378277702,0.08893318,84.119,84.097,1.73996817]
[1771378277904,3.84239161,84.143,84.097,1.73996817]
[1771378278109,3.84239161,84.139,84.096,0.07912518]
[1771378278306,3.84239161,84.137,84.096,0.07912518]
[1771378278603,5.8783934,84.13,84.094,10.7081]
[1771378278805,3.84239161,84.13,84.094,10.7081]
[1771378279300,3.84239161,84.13,84.104,0.08442529]
[1771378279903,3.84239161,84.142,84.106,1.68347865]
[1771378280108,10.89947904,84.141,84.106,1.68347865]
[1771378280307,10.89947904,84.14,84.106,1.68347865]
[1771378280505,10.89947904,84.139,84.106,1.68347865]
[1771378280702,3.84239161,84.142,84.106,1.68347865]
[1771378280902,3.84239161,84.154,84.115,0.08058439]
[1771378281103,14.74508029,84.153,84.115,0.08058439]
[1771378281304,3.84239161,84.151,84.115,0.08058439]
[1771378281504,10.90268868,84.15,84.115,0.08058439]
[1771378281713,10.90268868,84.149,84.115,0.08058439]
[1771378282010,10.90268868,84.148,84.115,0.08058439]
[1771378282213,10.90268868,84.147,84.115,0.08058439]
[1771378282513,3.84239161,84.151,84.115,0.08058439]
[1771378282809,10.87646685,84.15,84.115,1.77221085]
[1771378283012,10.87646685,84.149,84.115,1.77221085]
[1771378283212,3.84239161,84.163,84.115,1.77221085]
[1771378283401,3.84239161,84.161,84.115,1.77221085]
[1771378283601,14.71645181,84.16,84.115,1.77221085]
[1771378283912,14.71645181,84.159,84.117,1.69162646]
[1771378284112,10.8740602,84.158,84.117,1.69162646]
[1771378284308,10.8740602,84.157,84.117,1.69162646]
[1771378284513,10.8740602,84.156,84.117,1.69162646]
[1771378284807,14.40068621,84.203,84.117,1.69162646]
[1771378284808,10.8740602,84.155,84.129,0.08552472]
[1771378285012,3.84239161,84.168,84.129,0.08552472]
[1771378285212,3.84239161,84.167,84.129,0.08552472]
[1771378285412,3.84239161,84.167,84.121,1.73367401]
[1771378285801,3.84239161,84.167,84.14,0.07832165]
[1771378286005,3.84239161,84.179,84.14,0.07832165]
[1771378288609,3.84239161,84.179,84.142,1.71059032]
[1771378288810,3.84239161,84.191,84.142,1.71059032]
[1771378289110,3.84239161,84.191,84.151,1.71059032]
[1771378289312,3.84239161,84.204,84.161,1.71059032]
[1771378289515,3.84239161,84.199,84.161,1.71059032]
[1771378289714,3.84239161,84.197,84.163,0.08594821]
[1771378289915,3.84239161,84.195,84.163,0.08594821]
[1771378290714,3.84239161,84.195,84.136,74.8]
[1771378290715,3.84239161,84.179,84.141,10.702]
[1771378291220,3.84239161,84.179,84.136,10.7027]
[1771378292318,0.0868151,84.166,84.136,10.7027]
[1771378292517,0.0868151,84.166,84.134,1.67337701]
[1771378292718,0.0868151,84.166,84.128,10.7038]
[1771378292917,3.84239161,84.165,84.122,1.76622431]
[1771378293417,0.0868151,84.166,84.125,1.76622431]
[1771378293619,0.0868151,84.166,84.13,3.80095789]
[1771378293811,0.0868151,84.166,84.132,10.7033]
[1771378294211,3.84239161,84.177,84.132,10.7033]
[1771378294614,0.08913707,84.157,84.131,1.74984261]
[1771378295318,3.84239161,84.177,84.133,10.7031]
[1771378295522,3.84239161,84.177,84.136,0.08961318]
[1771378296020,3.84239161,84.177,84.136,1.83945579]
[1771378297324,3.84239161,84.169,84.136,0.08961318]
[1771378297519,3.84239161,84.159,84.11,3.76731817]
[1771378297723,3.84239161,84.149,84.11,1.73258459]
[1771378299126,0.0812877,84.138,84.11,1.73258459]
[1771378299822,0.0812877,84.138,84.11,3.76731817]
[1771378300021,0.0812877,84.138,84.111,10.7059]
[1771378300217,0.0812877,84.138,84.1,2.03473358]
[1771378300516,0.0812877,84.138,84.098,1.78919665]
[1771378300517,3.92367931,84.138,84.098,1.78919665]
[1771378301526,3.92367931,84.138,84.099,1.78919665]
[1771378302931,0.0812877,84.138,84.11,3.8236366]
[1771378303426,2.03473358,84.16,84.063,21.4241]
[1771378303427,3.84239161,84.15,84.105,10.7067]
[1771378303926,12.73333358,84.17,84.12,1.71237492]
[1771378304135,3.84239161,84.168,84.12,2.03473358]
[1771378304324,3.84239161,84.168,84.119,0.07846138]
[1771378304521,3.84239161,84.168,84.11,2.03473358]
[1771378304726,3.72743551,84.159,84.111,1.75639566]
[1771378304923,2.03473358,84.14,84.102,74.8]
[1771378305123,3.72743551,84.159,84.101,1.75613414]
[1771378305329,3.72743551,84.159,84.085,82.36]
[1771378305330,3.72743551,84.157,84.111,1.75613414]
[1771378306217,3.72743551,84.157,84.126,0.08002429]
[1771378312437,3.72743551,84.155,84.126,0.08002429]
[1771378313733,10.7006,84.154,84.126,0.08002429]
[1771378313935,3.60947746,84.153,84.126,0.08002429]
[1771378315439,3.60947746,84.147,84.101,1.94420285]
[1771378315635,0.08419534,84.148,84.111,1.94420285]
[1771378316136,3.60947746,84.158,84.111,1.94420285]
[1771378316729,0.07883709,84.143,84.112,1.64481718]
[1771378317230,0.07883709,84.143,84.115,1.64481718]
[1771378317834,3.60947746,84.157,84.115,1.64481718]
[1771378318228,0.08750549,84.137,84.115,1.64481718]
[1771378318439,10.7004,84.155,84.128,0.07915358]
[1771378319735,3.60947746,84.157,84.128,0.07915358]
[1771378320137,3.60947746,84.169,84.128,0.07915358]
[1771378320336,10.84149358,84.168,84.131,1.53042038]
[1771378320635,3.60947746,84.179,84.131,1.53042038]
[1771378320837,3.60947746,84.169,84.12,2.03473358]
[1771378321034,3.60947746,84.167,84.118,1.53042038]
[1771378321238,3.60947746,84.159,84.118,1.53042038]
[1771378321433,0.0829632,84.153,84.118,1.53042038]
[1771378325037,3.69244066,84.153,84.118,1.53042038]
[1771378326546,3.69244066,84.153,84.111,10.7059]
[1771378328440,3.60947746,84.15,84.107,1.45987673]
[1771378328641,3.60947746,84.149,84.104,10.7068]
[1771378329144,3.60947746,84.146,84.104,10.7068]
[1771378329546,0.08463001,84.135,84.104,10.7068]
[1771378331650,3.69410747,84.135,84.093,10.7082]
[1771378332348,3.69410747,84.135,84.086,1.47842852]
[1771378332743,3.69410747,84.135,84.09,2.03473358]
[1771378333050,3.60947746,84.129,84.078,10.7101]
[1771378333239,3.60947746,84.12,84.078,10.7101]
[1771378333441,3.60947746,84.12,84.078,12.18852852]
[1771378333642,3.60947746,84.12,84.08,2.03473358]
[1771378334150,3.60947746,84.12,84.08,3.5131621]
[1771378334945,3.60947746,84.12,84.081,10.7098]
[1771378336150,3.60947746,84.12,84.081,12.26763121]
[1771378338548,3.60947746,84.12,84.082,1.56198567]
[1771378339653,3.60947746,84.12,84.084,10.7094]
[1771378339853,3.60947746,84.12,84.082,1.56198567]
[1771378340053,3.86978882,84.119,84.082,1.56198567]
[1771378340751,14.57498882,84.117,84.082,1.56198567]
[1771378340948,3.86978882,84.117,84.082,1.56198567]
[1771378344156,0.08318787,84.121,84.084,1.5665353]
[1771378344558,0.08318787,84.121,84.091,1.5665353]
[1771378344747,2.03601424,84.14,84.091,1.5665353]
[1771378345251,2.03601424,84.14,84.083,81.26]
[1771378345252,3.86978882,84.141,84.101,1.5665353]
[1771378345653,14.57198882,84.141,84.101,1.5665353]
[1771378346161,3.86978882,84.141,84.101,1.5665353]
[1771378346362,2.03601424,84.15,84.101,1.5665353]
[1771378347357,3.86978882,84.145,84.117,0.07793997]
[1771378348962,10.7006,84.154,84.117,0.07793997]
[1771378349562,3.86978882,84.153,84.117,0.07793997]
[1771378351262,3.86978882,84.153,84.118,1.55049166]
[1771378351460,3.86978882,84.165,84.121,1.55049166]
[1771378352567,3.86978882,84.165,84.135,0.08197521]
[1771378353866,3.86978882,84.163,84.135,0.08197521]
[1771378354061,9.85158048,84.162,84.135,0.08197521]
[1771378354260,9.85158048,84.161,84.135,0.08197521]
[1771378354463,3.86978882,84.163,84.135,0.08197521]
[1771378354660,13.72129215,84.162,84.135,0.08197521]
[1771378354855,9.85150333,84.161,84.135,0.08197521]
[1771378355060,3.86978882,84.161,84.135,0.08197521]
[1771378356255,10.6988,84.168,84.135,0.08197521]
[1771378356963,3.86978882,84.164,84.135,0.08197521]
[1771378357167,3.86978882,84.159,84.135,0.08197521]
[1771378357663,3.86978882,84.159,84.12,1.55098808]
[1771378357969,10.6988,84.168,84.121,1.55098808]
[1771378358172,3.86978882,84.17,84.139,0.08777816]
[1771378359470,2.03601424,84.18,84.14,1.48947422]
[1771378360263,3.86978882,84.182,84.14,1.48947422]
[1771378360472,3.86978882,84.191,84.15,3.53821591]
[1771378360668,3.86978882,84.189,84.15,1.50220167]
[1771378361468,9.8694095,84.188,84.161,0.08950891]
[1771378361766,3.86978882,84.187,84.161,0.08950891]
[1771378364873,2.03601424,84.18,84.139,1.4966125]
[1771378365472,3.96016948,84.181,84.141,1.52379776]
[1771378365968,3.96016948,84.169,84.123,1.52379776]
[1771378366173,3.96016948,84.169,84.127,12.16776073]
[1771378366370,4.04686089,84.169,84.128,1.46396073]
[1771378366776,4.04686089,84.169,84.131,1.46396073]
[1771378367277,4.04686089,84.169,84.134,10.703]
[1771378371477,0.08669141,84.169,84.137,1.39472854]
[1771378372581,0.08669141,84.169,84.139,1.39492741]
[1771378374172,14.41612728,84.195,84.151,1.2854183]
[1771378374384,3.72072728,84.189,84.151,1.2854183]
[1771378374585,3.72072728,84.179,84.146,0.07958995]
[1771378374879,3.72072728,84.176,84.14,1.2854183]
[1771378375182,3.72072728,84.176,84.135,80.78]
[1771378375668,3.72072728,84.176,84.15,0.08145541]
[1771378376678,10.6981,84.174,84.15,0.08145541]
[1771378376876,3.72072728,84.173,84.15,0.08145541]
[1771378377077,3.72072728,84.173,84.131,1.36219078]
[1771378377277,0.07776389,84.17,84.131,1.36219078]
[1771378379484,0.07776389,84.17,84.132,1.33032442]
[1771378380274,3.72072728,84.166,84.123,80.86]
[1771378380486,3.72072728,84.159,84.12,1.34919229]
[1771378381286,0.08210154,84.148,84.12,1.34919229]
[1771378381582,0.08210154,84.148,84.123,1.34919229]
[1771378381783,3.72072728,84.159,84.123,1.34919229]
[1771378382180,3.72072728,84.159,84.127,0.09123958]
[1771378383179,3.72072728,84.171,84.13,2.03601424]
[1771378383381,3.72072728,84.171,84.131,1.36033878]
[1771378384179,3.72072728,84.171,84.143,0.07665176]
[1771378384389,3.72072728,84.179,84.143,0.07665176]
[1771378384591,3.72072728,84.177,84.143,0.07665176]
[1771378384786,3.72072728,84.169,84.12,3.30911996]
[1771378385084,3.72072728,84.169,84.121,1.27310572]
[1771378385790,3.72072728,84.166,84.122,1.27310572]
[1771378386886,0.0751825,84.152,84.122,1.27310572]
[1771378389485,0.0751825,84.152,84.124,1.28536685]
[1771378390485,0.0751825,84.152,84.13,2.03601424]
[1771378390691,3.72072728,84.166,84.13,2.03601424]
[1771378390888,3.72072728,84.166,84.13,2.1126537]
[1771378391287,3.72072728,84.166,84.13,3.39713454]
[1771378391691,3.72072728,84.166,84.13,1.3611203]
[1771378392283,3.72072728,84.171,84.13,1.3611203]
[1771378392484,3.72072728,84.169,84.13,1.3611203]
[1771378392787,9.8455415,84.168,84.13,0.07663946]
[1771378392984,2.03601424,84.17,84.123,81.36]
[1771378392985,3.72072728,84.167,84.123,81.36]
[1771378393184,3.72072728,84.166,84.124,10.7043]
[1771378393484,3.72072728,84.166,84.141,0.08434498]
[1771378400294,2.03601424,84.15,84.109,1.20844949]
[1771378400501,2.03601424,84.14,84.098,36.50497288]
[1771378401695,0.08783153,84.127,84.098,36.50497288]
[1771378403292,0.08783153,84.127,84.099,10.7074]
[1771378403496,0.08783153,84.127,84.1,36.46105011]
[1771378408588,0.08783153,84.127,84.088,74.82]
[1771378408793,2.03526291,84.12,84.081,36.44924082]
[1771378409798,0.08828263,84.109,84.081,36.44924082]
[1771378420008,0.08828263,84.109,84.082,10.7097]
[1771378420209,0.08828263,84.109,84.083,36.35596191]
[1771378421910,0.08828263,84.109,84.084,83.32]
[1771378422114,0.08828263,84.109,84.085,36.34732447]
[1771378424510,0.08828263,84.109,83.999,29.50032982]
[1771378424511,2.03526291,84.09,83.999,29.50032982]
[1771378424814,2.03526291,84.06,84.028,74.82]
[1771378425111,2.03526291,84.05,83.952,29.50049745]
[1771378425312,166.5683,84.096,83.933,29.50049745]
[1771378425622,0.07903941,84.052,83.972,2.07040569]
[1771378425911,2.03526291,84.03,83.97,2.03526291]
[1771378426113,2.03526291,84.01,83.97,2.03526291]
[1771378426313,74.82,84.039,83.97,2.03526291]
[1771378426504,74.82,84.046,83.981,29.66421512]
[1771378426705,2.03526291,84.03,83.981,29.66421512]
[1771378426909,0.08606974,84.013,83.981,29.66421512]
[1771378427311,2.03526291,84.01,83.968,84.4]
[1771378427813,2.03526291,84.01,83.969,29.66165224]
[1771378428012,74.82,84.05,83.947,84.5]
[1771378428013,2.03526291,83.99,83.947,84.5]
[1771378428212,0.07986342,83.997,83.95,2.03526291]
[1771378428418,0.07986342,83.997,83.951,29.30597814]
[1771378428719,74.82,84.038,83.948,84.52]
[1771378428720,2.03526291,84.01,83.961,29.30597814]
[1771378428916,2.03526291,84.02,83.971,29.30597814]
[1771378429116,2.03526291,84.01,83.972,74.82]
[1771378429320,2.03526291,84.02,83.971,29.30041831]
[1771378430107,2.03526291,84.03,83.981,29.29660136]
[1771378430307,2.03526291,84.03,83.95,10.7264]
[1771378430308,2.03526291,84.0,83.95,2.03526291]
[1771378430511,2.03526291,84.0,83.953,84.64]
[1771378431615,2.03526291,84.0,83.831,29.47927807]
[1771378431616,9.60560804,84.037,83.94,2.03526291]
[1771378431815,2.03526291,83.99,83.954,84.66]
[1771378432019,2.03526291,84.0,83.954,84.66]
[1771378432214,0.07955555,83.997,83.954,84.66]
[1771378432421,2.03526291,83.99,83.955,84.68]
[1771378433215,0.07955555,83.997,83.912,2.07214395]
[1771378433216,0.07955555,83.997,83.956,84.72]
[1771378433412,0.07955555,83.997,83.95,2.03526291]
[1771378433413,0.07955555,83.997,83.958,19.91809588]
[1771378433720,2.03526291,83.99,83.958,19.91809588]
[1771378434122,0.08410624,83.986,83.958,19.91809588]
[1771378435018,2.03526291,84.0,83.958,19.91809588]
[1771378435215,2.03526291,84.0,83.964,0.08340119]
[1771378435420,10.7187,84.012,83.964,0.08340119]
[1771378435615,2.03526291,84.0,83.964,0.08340119]
[1771378436220,2.03526291,83.99,83.964,0.08340119]
[1771378436821,2.03526291,83.99,83.955,74.82]
[1771378437225,2.03526291,83.99,83.969,0.07878607]
[1771378438418,2.03526291,84.0,83.969,0.07878607]
[1771378438624,10.7189,84.01,83.969,0.07878607]
[1771378438826,2.03526291,84.0,83.969,0.07878607]
[1771378439019,2.03526291,84.0,83.958,20.09105132]
[1771378439422,2.03526291,83.99,83.976,0.07917662]
[1771378439619,2.03526291,83.99,83.957,65.50257662]
[1771378439924,2.03526291,83.98,83.954,85.0]
[1771378440118,166.6171,84.072,83.954,85.0]
[1771378440119,2.03526291,83.99,83.955,20.13890892]
[1771378440319,74.82,84.036,83.955,20.13890892]
[1771378440527,2.03526291,84.0,83.955,20.13890892]
[1771378441329,2.03526291,84.01,83.961,20.13936053]
[1771378441630,2.03526291,84.01,83.969,20.21707884]
[1771378442017,2.03526291,84.01,83.97,85.08]
[1771378442225,2.03526291,83.99,83.969,0.07771831]
[1771378442938,2.03526291,83.99,83.965,85.1]
[1771378443134,2.03526291,83.99,83.971,0.08698495]
[1771378443734,2.03526291,84.0,83.971,0.08698495]
[1771378446531,2.03526291,83.99,83.971,0.08698495]
[1771378447038,2.03526291,83.99,83.941,10.7276]
[1771378447039,2.03526291,83.98,83.938,20.07281817]
[1771378447338,2.03526291,83.99,83.94,20.07281817]
[1771378447531,2.03526291,83.99,83.941,85.38]
[1771378447737,2.03526291,83.99,83.951,0.08400692]
[1771378447932,10.7216,83.989,83.951,0.08400692]
[1771378451340,10.7205,83.998,83.951,20.21021517]
[1771378451534,2.03526291,83.99,83.952,74.84]
[1771378452130,2.03526291,83.99,83.951,20.12620825]
[1771378452334,2.03526291,83.99,83.963,0.08156072]
[1771378453843,10.7205,83.998,83.963,0.08156072]
[1771378455138,2.03526291,84.0,83.963,20.216292]
[1771378455437,10.7193,84.007,83.963,20.216292]
[1771378456839,2.03526291,84.0,83.963,20.216292]
[1771378457039,2.03526291,84.01,83.963,20.216292]
[1771378457642,2.03526291,84.0,83.963,20.13473128]
[1771378458043,2.03526291,84.0,83.978,0.07627684]
[1771378458746,2.03526291,84.01,83.978,0.07627684]
[1771378459333,10.77150422,84.054,83.978,0.07627684]
[1771378459334,10.41975919,84.034,83.981,20.10505862]
[1771378459537,14.36121437,84.078,83.978,0.07627684]
[1771378459538,2.03526291,84.04,83.991,20.10505862]
[1771378459739,2.03526291,84.03,83.991,20.10505862]
[1771378460251,2.03526291,84.0,83.951,20.09674536]
[1771378460436,2.03526291,84.0,83.953,20.09674536]
[1771378461741,10.7201,84.0,83.955,20.09719234]
[1771378461947,0.07643563,83.985,83.955,20.09719234]
[1771378462250,0.07643563,83.985,83.957,20.09719234]
[1771378462448,0.07643563,83.985,83.961,20.06009055]
[1771378464053,2.03526291,84.02,83.971,20.0605947]
[1771378464349,10.4574426,84.019,83.971,20.0605947]
[1771378464548,10.4574426,84.018,83.971,20.0605947]